Workbook

Sheet PFP
A1: PROPOSTA FINANCEIRA DO PROJETO | J1: CODIGO:
J2: PFP
A3: NOME DA CONSULTORA:
A5: PROJETO: | F5: CONTRATANTE: | J5: BASE: Outubro/2022
A6: Pavimentação em Cristalina/GO | F6: Codevasf (Sede)
A7: Base | B7: Cod1 | C7: Cod2 | D7: Categoria / Insumo | E7: Uni | F7: Qde | G7: CUD | H7: PU | I7: FatorK | J7: CT | K7: PT
A8: SICRO | B8: MO | C8: P0 | D8: Engenheiro (Coordenador) (P8061) | E8: mês | F8: ='CRO1_Ins-Pro'!D4 -> 4 | G8: 16889.91 | H8: =ROUND(I8*G8,2) -> 28633.46 | I8: =PFP2.1_FatorKa!J8 -> 1.6953 | J8: =ROUND(F8*G8,2) -> 67559.64 | K8: =ROUND(F8*H8,2) -> 114533.84
A9: SICRO | B9: MO | C9: P2 | D9: Engenheiro Pleno – Projeto (P8066) | E9: mês | F9: ='CRO1_Ins-Pro'!D5 -> 3 | G9: 10987.76 | H9: 25913.53 | I9: =PFP2.1_FatorKa!J9 -> 2.3584 | J9: 32963.28 | K9: 77740.59
A10: SICRO | B10: MO | C10: P2 | D10: Engenheiro Pleno - Ambiental (P8058) | E10: mês | F10: ='CRO1_Ins-Pro'!D6 -> 1 | G10: 10929.35 | H10: 25775.78 | I10: =PFP2.1_FatorKa!J10 -> 2.3584 | J10: 10929.35 | K10: 25775.78
A11: SICRO | B11: MO | C11: A1 | D11: Administrativo (Secretariado) (P8135) | E11: mês | F11: ='CRO1_Ins-Pro'!D7 -> 4 | G11: 2254.2 | H11: 5316.31 | I11: =PFP2.1_FatorKa!J11 -> 2.3584 | J11: 9016.8 | K11: 21265.24
A12: PROP | B12: DP | C12: V1 | D12: Diárias | E12: dia | F12: ='CRO1_Ins-Pro'!D8 -> 21 | G12: 305.1 | H12: 383.14 | I12: =PFP3_FatorKc!$E$19 -> 1.2558 | J12: 6407.1 | K12: 8045.94
A13: CODE | B13: LO | C13: V2 | D13: Pick-up Cab. Dupla 2.8 4x4 Diesel | E13: dia | F13: ='CRO1_Ins-Pro'!D9 -> 10 | G13: ='CPU VEICULOS'!D8 -> 323.0860055 | H13: 405.73 | I13: =PFP3_FatorKc!$E$19 -> 1.2558 | J13: 3230.86 | K13: 4057.3
A14: CODE | B14: EM | C14: M4 | D14: Relatório Final | E14: un | F14: ='CRO1_Ins-Pro'!D10 -> 1 | G14: 1478.8 | H14: 1857.08 | I14: =PFP3_FatorKc!$E$19 -> 1.2558 | J14: 1478.8 | K14: 1857.08
A15: CODE | B15: SG | C15: TP | D15: Total Serviços Topográficos | E15: un | F15: ='CRO1_Ins-Pro'!D11 -> 1 | G15: - | H15: =(PFP1.1_Topo_Lajes!G16)+(PFP1.1_Topo_Jatobá!G16) -> 221087.91 | I15: - | J15: - | K15: 221087.91
A16: CODE | B16: SG | C16: GT | D16: Total Serviços Geotécnicos | E16: un | F16: ='CRO1_Ins-Pro'!D12 -> 1 | G16: - | H16: =(PFP1.2_Geo_Lajes!G34)+(PFP1.2_Geo_Jatobá!G34) -> 437325.9 | I16: - | J16: - | K16: 437325.9
A17: TOTAL DOS CUSTOS DIRETOS | H17: =SUM(J8:J16) -> 131585.83
A18: TOTAL DOS ENCARGOS E DISPESAS DIVERSAS | H18: =H19-H17 -> 121689.94
A19: TOTAL DA PROPOSTA A PREÇO GLOBAL | H19: =SUM(K8:K14) -> 253275.77
A20: TOTAL DA PROPOSTA A PREÇO UNITÁRIO | H20: =SUM(K15:K16) -> 658413.81
A21: TOTAL DA PROPOSTA | H21: =H19+H20 -> 911689.58
A22: NOME DO INFORMANTE: | J22: QUALIFICAÇÃO
A24: ASSINATURA: | J24: DATA:
A26: OBSERVAÇÃO:
A27: Alocar os Insumos MO, com respectivo FatorK, dentro da categoria de vínculo contratual (com ou sem) de cada tipo de profissional
A28: Uni - unidade de medição do insumo;
A29: Qde - Quantidade do Insumo (não pode ocorrer alteração pela Licitante)
A30: CUD - Custo Unitário Direto do Insumo (sem encargos, taxas e impostos, valor não pode ser maior que o Orçado pela Codevasf)
A31: CT - Custo Total (sem encargos, taxas e impostos) - CT = Qde x CUD
A32: FatorK - Taxa de Ressarcimento de Despesas e Encargos (detalhar composição nas Planilhas "PFP2.1", "PFP2.2", "PFP3")
A33: PU - Preço Unitário do Insumo (incluído encargos, taxas e impostos) - PU = CUD x FatorK
A34: PT - Preço Total do Insumo (incluído encargos, taxas e impostos) - PT = Qde x PU
A35: P - Profissionais nível superior nas áreas de Engenharia, Química, Arquitetura, Agronomia e Veterinária, conforme disposições da Lei 4.950-A/66
A36: S - Profissionais de nível superior nas demais áreas de atuação, incluindo Arqueólogo, Biólogo, Geógrafo e Socioólogo
A37: T - Profissionais de nível médio técnico nas diversas áreas de atuação
A38: A - Profissionais de nível médio de apoio técnico-administrativo

Sheet Plan1 (hidden)

Sheet PFP1.1_Topo_Lajes
A1: SERVIÇOS TOPOGRÁFICOS | G1: CODIGO:
G2: PFP-1.1
A3: NOME DA EMPRESA:
A5: PROJETO: | E5: CONTRATANTE: | G5: =PFP!J5 -> BASE: Outubro/2022
A6: Estrada das Lajes/GO | E6: =PFP!F6 -> Codevasf (Sede)
A7: Cod. | B7: Base | C7: Insumos | D7: Uni | E7: Qde | F7: Preço Unitário (PU) | G7: Preço Total (PT)
A8: TP2 | B8: CODE | C8: Poligonal classe IIP | D8: km | E8: =E9 -> 10.9 | F8: 1984.3 | G8: =ROUND(F8*E8,2) -> 21628.87
A9: TP7 | B9: CODE | C9: Nivelamento Geométrico classe IN | D9: km | E9: =7.9+3 -> 10.9 | F9: 1304.85 | G9: 14222.87
A10: TP8 | B10: CODE | C10: Seções Transversais (Nivelamento IIN) | D10: km | E10: =((E9*1000)/20)*0.04 -> 21.8 | F10: 788.72 | G10: 17194.1
A11: TP19 | B11: CODE | C11: Pontos GPS de dupla frequencia (L1/L2) | D11: un | E11: 6 | F11: 981.07 | G11: 5886.42
A12: TP27 | B12: CODE | C12: Marco de Concreto (12x18x60cm) | D12: un | E12: =E11 -> 6 | F12: 53.89 | G12: 323.34
A13: TP28 | B13: CODE | C13: Barrote de Madeira (10x10x50cm | D13: un | E13: =E14*0.5 -> 272.5 | F13: 28.7 | G13: 7820.75
A14: TP29 | B14: CODE | C14: Piquete de Madeira (2x2x20cm) | D14: un | E14: =(E9*1000)/20 -> 545 | F14: 2.41 | G14: 1313.45
A15: PD6 | B15: CODE | C15: Picada Manual | D15: km | E15: =E10 -> 21.8 | F15: 194.88 | G15: 4248.38
A16: TOTAL SERVIÇOS TOPOGRÁFICOS | G16: =SUM(G8:G15) -> 72638.18
A17: NOME DO INFORMANTE: | F17: QUALIFICAÇÃO:
A19: ASSINATURA: | F19: DATA:
A21: OBSERVAÇÃO:
A22: Uni - unidade de medição do insumo;
A23: Qde - Quantidade do Insumo (não pode ocorrer alteração pela Licitante)
A24: PU - Preço Unitário (composições padrão da Codevasf, já incluso o FatorK)
A25: PT - Preço Total (incluído encargos, taxas e impostos) - PT = Qde x PU

Sheet PFP1.2_Geo_Lajes
A1: SERVIÇOS GEOLÓGICOS/GEOTÉCNICOS | G1: CODIGO:
G2: PFP-1.2
A3: NOME DA EMPRESA:
A5: PROJETO: | E5: CONTRATANTE: | G5: =PFP!J5 -> BASE: Outubro/2022
A6: =PFP1.1_Topo_Lajes!A6 -> Estrada das Lajes/GO | E6: =PFP!F6 -> Codevasf (Sede)
A7: Cod. | B7: Base | C7: Insumos | D7: Uni | E7: Qde | F7: Preço Unitário (PU) | G7: Preço Total (PT)
A8: GT1.2 | B8: CODE | C8: Sondagem Rotativa: (Des)Mobilização | D8: un | E8: 1 | F8: 4110.46 | G8: =ROUND(F8*E8,2) -> 4110.46
A9: GT1.3.1 | B9: CODE | C9: Sondagem Rotativa: Ø N em rochas | D9: m | E9: 20 | F9: 712.73 | G9: 14254.6
A10: GT2.1 | B10: CODE | C10: Sondagem Percussão: (Des)Mobilização | D10: un | E10: 1 | F10: 878.94 | G10: 878.94
A11: GT2.2 | B11: CODE | C11: Sondagem Percussão: com SPT | D11: m | E11: =(16*1.5)+(4*1.5) -> 30 | F11: 77.08 | G11: 2312.4
A12: GT5 | B12: CODE | C12: Poços de Inspeção | D12: m | E12: 24 | F12: 190.68 | G12: 4576.32
A13: GT6.1.1 | B13: CODE | C13: Ensaio: Umidade Natural | D13: un | E13: =16+4 -> 20 | F13: 84.49 | G13: 1689.8
A14: GT6.1.2 | B14: CODE | C14: Ensaio: Densidade Natural | D14: un | E14: =16+4 -> 20 | F14: 84.49 | G14: 1689.8
A15: GT6.1.3 | B15: CODE | C15: Ensaio: Limite de Liquidez | D15: un | E15: 20 | F15: 117 | G15: 2340
A16: GT6.1.4 | B16: CODE | C16: Ensaio: Limite de Plasticidade | D16: un | E16: 20 | F16: 117 | G16: 2340
A17: G6.1.5 | B17: CODE | C17: Ensaio: Granulometria por Peneiramento | D17: un | E17: 20 | F17: 123.34 | G17: 2466.8
A18: GT6.1.6 | B18: CODE | C18: Ensaio: Granulometria por Sedimentação | D18: un | E18: 20 | F18: 382.79 | G18: 7655.8
A19: GT6.1.7 | B19: CODE | C19: Ensaio: Compactação Proctor Normal | D19: un | E19: 20 | F19: 160.41 | G19: 3208.2
A20: GT6.1.8 | B20: CODE | C20: Ensaio: Massa Especifica Real dos Grãos | D20: un | E20: 20 | F20: 104.27 | G20: 2085.4
A21: GT6.1.9 | B21: CODE | C21: Ensaio: Adensamento Oedométrico | D21: un | E21: 20 | F21: 283.57 | G21: 5671.4
A22: GT6.1.10 | B22: CODE | C22: Ensaio: Triaxial UU ñ consolidado ñ drenado | D22: un | E22: 20 | F22: 822.95 | G22: 16459
A23: GT6.1.11 | B23: CODE | C23: Ensaio: Triaxial CU consolidado ñ drenado | D23: un | E23: 20 | F23: 1129.48 | G23: 22589.6
A24: GT6.1.12.1 | B24: CODE | C24: Ensaio: Expansão colapsividade em anéis de adensamento | D24: un | E24: 20 | F24: 380.8 | G24: 7616
A25: GT6.1.12.2 | B25: CODE | C25: Ensaio: Expansão amostra indeformada com pressão de expansão | D25: un | E25: 20 | F25: 300.93 | G25: 6018.6
A26: GT6.1.14 | B26: CODE | C26: Ensaio: Infiltração | D26: un | E26: 4 | F26: 228.5 | G26: 914
A27: GT6.1.16.1 | B27: CODE | C27: Ensaio: Análise Quimica da Areia | D27: un | E27: 4 | F27: 459.82 | G27: 1839.28
A28: GT6.1.16.2 | B28: CODE | C28: Ensaio: Mineralogia da Areia | D28: un | E28: 4 | F28: 529.2 | G28: 2116.8
A29: GT6.1.17 | B29: CODE | C29: Ensaio: Análise Petrográfica/Mineralogia | D29: un | E29: 4 | F29: 529.2 | G29: 2116.8
A30: GT6.1.18 | B30: CODE | C30: Ensaio: Abrasão “LOS ANGELES” | D30: un | E30: 4 | F30: 414.19 | G30: 1656.76
A31: GT6.1.19 | B31: CODE | C31: Ensaio: Reatividade Potencial | D31: un | E31: 4 | F31: 1382.66 | G31: 5530.64
A32: GT6.1.21 | B32: CODE | C32: Ensaio: Retirada de Amostra Indeformada | D32: un | E32: 8 | F32: 691.33 | G32: 5530.64
A33: AD 04.05.0450 | B33: SCO | C33: Ensaio para determinação do ISC - 3 pontos - com energia Proctor Normal | D33: un | E33: =16+4 -> 20 | F33: 1242.24 | G33: 24844.8
A34: TOTAL SERVIÇOS GEOTÉCNICOS | G34: =SUM(G8:G33) -> 152512.84
A35: NOME DO INFORMANTE: | F35: QUALIFICAÇÃO:
A37: ASSINATURA: | F37: DATA:
A39: LEGENDA:
A40: Uni - unidade de medição do insumo;
A41: Qde - Quantidade do Insumo (não pode ocorrer alteração pela Licitante)
A42: PU - Preço Unitário (composições padrão da Codevasf, já incluso o FatorK)
A43: PT - Preço Total (incluído encargos, taxas e impostos) - PT = Qde x PU

Sheet PFP1.1_Topo_Jatobá
A1: SERVIÇOS TOPOGRÁFICOS/CARTOGRÁFICOS | G1: CODIGO:
G2: PFP-1.1
A3: NOME DA EMPRESA:
A5: PROJETO: | E5: CONTRATANTE: | G5: =PFP!J5 -> BASE: Outubro/2022
A6: Estrada do Jatobá/GO | E6: =PFP!F6 -> Codevasf (Sede)
A7: Cod. | B7: Base | C7: Insumos | D7: Uni | E7: Qde | F7: Preço Unitário (PU) | G7: Preço Total (PT)
A8: =PFP1.1_Topo_Lajes!A8 -> TP2 | B8: CODE | C8: Poligonal classe IIP | D8: km | E8: =E9 -> 23 | F8: 1984.3 | G8: =ROUND(F8*E8,2) -> 45638.9
A9: =PFP1.1_Topo_Lajes!A9 -> TP7 | B9: CODE | C9: Nivelamento Geométrico classe IN | D9: km | E9: =16.5+6.5 -> 23 | F9: 1304.85 | G9: 30011.55
A10: =PFP1.1_Topo_Lajes!A10 -> TP8 | B10: CODE | C10: Seções Transversais (Nivelamento IIN) | D10: km | E10: =((E9*1000)/20)*0.04 -> 46 | F10: 788.72 | G10: 36281.12
A11: =PFP1.1_Topo_Lajes!A11 -> TP19 | B11: CODE | C11: Pontos GPS de dupla frequencia (L1/L2) | D11: un | E11: 8 | F11: 981.07 | G11: 7848.56
A12: =PFP1.1_Topo_Lajes!A12 -> TP27 | B12: CODE | C12: Marco de Concreto (12x18x60cm) | D12: un | E12: =E11 -> 8 | F12: 53.89 | G12: 431.12
A13: =PFP1.1_Topo_Lajes!A13 -> TP28 | B13: CODE | C13: Barrote de Madeira (10x10x50cm | D13: un | E13: =E14*0.5 -> 575 | F13: 28.7 | G13: 16502.5
A14: =PFP1.1_Topo_Lajes!A14 -> TP29 | B14: CODE | C14: Piquete de Madeira (2x2x20cm) | D14: un | E14: =(E9*1000)/20 -> 1150 | F14: 2.41 | G14: 2771.5
A15: =PFP1.1_Topo_Lajes!A15 -> PD6 | B15: CODE | C15: Picada Manual | D15: km | E15: =E10 -> 46 | F15: 194.88 | G15: 8964.48
A16: TOTAL SERVIÇOS TOPOGRÁFICOS | G16: =SUM(G8:G15) -> 148449.73
A17: NOME DO INFORMANTE: | F17: QUALIFICAÇÃO:
A19: ASSINATURA: | F19: DATA:
A21: OBSERVAÇÃO:
A22: Uni - unidade de medição do insumo;
A23: Qde - Quantidade do Insumo (não pode ocorrer alteração pela Licitante)
A24: PU - Preço Unitário (composições padrão da Codevasf, já incluso o FatorK)
A25: PT - Preço Total (incluído encargos, taxas e impostos) - PT = Qde x PU

Sheet PFP1.2_Geo_Jatobá
A1: SERVIÇOS GEOLÓGICOS/GEOTÉCNICOS | G1: CODIGO:
G2: PFP-1.2
A3: NOME DA EMPRESA:
A5: PROJETO: | E5: CONTRATANTE: | G5: =PFP!J5 -> BASE: Outubro/2022
A6: =PFP1.1_Topo_Jatobá!A6 -> Estrada do Jatobá/GO | E6: =PFP!F6 -> Codevasf (Sede)
A7: Cod. | B7: Base | C7: Insumos | D7: Uni | E7: Qde | F7: Preço Unitário (PU) | G7: Preço Total (PT)
A8: GT1.2 | B8: CODE | C8: Sondagem Rotativa: (Des)Mobilização | D8: un | E8: 0 | F8: 4110.46 | G8: =ROUND(F8*E8,2) -> 0
A9: GT1.3.1 | B9: CODE | C9: Sondagem Rotativa: Ø N em rochas | D9: m | E9: 40 | F9: 712.73 | G9: 28509.2
A10: GT2.1 | B10: CODE | C10: Sondagem Percussão: (Des)Mobilização | D10: un | E10: 0 | F10: 878.94 | G10: 0
A11: GT2.2 | B11: CODE | C11: Sondagem Percursão: com SPT | D11: m | E11: =ROUNDUP(((33*1.5)+(6*1.5)),-1) -> 60 | F11: 77.08 | G11: 4624.8
A12: GT5 | B12: CODE | C12: Poços de Inspeção | D12: m | E12: =40+6 -> 46 | F12: 190.68 | G12: 8771.28
A13: GT6.1.1 | B13: CODE | C13: Ensaio: Umidade Natural | D13: un | E13: =ROUNDUP(33+6,-1) -> 40 | F13: 84.49 | G13: 3379.6
A14: GT6.1.2 | B14: CODE | C14: Ensaio: Densidade Natural | D14: un | E14: =ROUNDUP(33+6,-1) -> 40 | F14: 84.49 | G14: 3379.6
A15: GT6.1.3 | B15: CODE | C15: Ensaio: Limite de Liquidez | D15: un | E15: 40 | F15: 117 | G15: 4680
A16: GT6.1.4 | B16: CODE | C16: Ensaio: Limite de Plasticidade | D16: un | E16: 40 | F16: 117 | G16: 4680
A17: G6.1.5 | B17: CODE | C17: Ensaio: Granulometria por Peneiramento | D17: un | E17: 40 | F17: 123.34 | G17: 4933.6
A18: GT6.1.6 | B18: CODE | C18: Ensaio: Granulometria por Sedimentação | D18: un | E18: 40 | F18: 382.79 | G18: 15311.6
A19: GT6.1.7 | B19: CODE | C19: Ensaio: Compactação Proctor Normal | D19: un | E19: 40 | F19: 160.41 | G19: 6416.4
A20: GT6.1.8 | B20: CODE | C20: Ensaio: Massa Especifica Real dos Grãos | D20: un | E20: 40 | F20: 104.27 | G20: 4170.8
A21: GT6.1.9 | B21: CODE | C21: Ensaio: Adensamento Oedométrico | D21: un | E21: 40 | F21: 283.57 | G21: 11342.8
A22: GT6.1.10 | B22: CODE | C22: Ensaio: Triaxial UU ñ consolidado ñ drenado | D22: un | E22: 40 | F22: 822.95 | G22: 32918
A23: GT6.1.11 | B23: CODE | C23: Ensaio: Triaxial CU consolidado ñ drenado | D23: un | E23: 40 | F23: 1129.48 | G23: 45179.2
A24: GT6.1.12.1 | B24: CODE | C24: Ensaio: Expansão colapsividade em anéis de adensamento | D24: un | E24: 40 | F24: 380.8 | G24: 15232
A25: GT6.1.12.2 | B25: CODE | C25: Ensaio: Expansão amostra indeformada com pressão de expansão | D25: un | E25: 40 | F25: 300.93 | G25: 12037.2
A26: GT6.1.14 | B26: CODE | C26: Ensaio: Infiltração | D26: un | E26: 6 | F26: 228.5 | G26: 1371
A27: GT6.1.16.1 | B27: CODE | C27: Ensaio: Análise Quimica da Areia | D27: un | E27: 6 | F27: 459.82 | G27: 2758.92
A28: GT6.1.16.2 | B28: CODE | C28: Ensaio: Mineralogia da Areia | D28: un | E28: 6 | F28: 529.2 | G28: 3175.2
A29: GT6.1.17 | B29: CODE | C29: Ensaio: Análise Petrográfica/Mineralogia | D29: un | E29: 6 | F29: 529.2 | G29: 3175.2
A30: GT6.1.18 | B30: CODE | C30: Ensaio: Abrasão “LOS ANGELES” | D30: un | E30: 6 | F30: 414.19 | G30: 2485.14
A31: GT6.1.19 | B31: CODE | C31: Ensaio: Reatividade Potencial | D31: un | E31: 6 | F31: 1382.66 | G31: 8295.96
A32: GT6.1.21 | B32: CODE | C32: Ensaio: Retirada de Amostra Indeformada | D32: un | E32: 12 | F32: 691.33 | G32: 8295.96
A33: AD 04.05.0450 | B33: SCO | C33: Ensaio para determinação do ISC - 3 pontos - com energia Proctor Normal | D33: un | E33: 40 | F33: 1242.24 | G33: 49689.6
A34: TOTAL SERVIÇOS GEOTÉCNICOS | G34: =SUM(G8:G33) -> 284813.06
A35: NOME DO INFORMANTE: | F35: QUALIFICAÇÃO:
A37: ASSINATURA: | F37: DATA:
A39: LEGENDA:
A40: Uni - unidade de medição do insumo;
A41: Qde - Quantidade do Insumo (não pode ocorrer alteração pela Licitante)
A42: PU - Preço Unitário (composições padrão da Codevasf, já incluso o FatorK)
A43: PT - Preço Total (incluído encargos, taxas e impostos) - PT = Qde x PU

Sheet PFP2.1_FatorKa
A1: DETALHAMENTO DOS ENCARGOS SOCIAIS: Ka | J1: CODIGO:
J2: PFP-2.1
A3: NOME DA CONSULTORA:
A5: PROJETO: | F5: CONTRATANTE: | J5: BASE: Outubro/2022
A6: =PFP!A6 -> Pavimentação em Cristalina/GO | F6: Codevasf (Sede)
A7: Base | B7: Cod Sicro | C7: Cod1 | D7: Cod2 | E7: Categoria / Insumo | F7: K1 | G7: K2 | H7: K3 | I7: K4 | J7: Ka
A8: SICRO | B8: P8061 | C8: MO | D8: P0 | E8: Engenheiro (Coordenador) (P8061) | F8: 0.2 | G8: =PFP3_FatorKc!$E$15 -> 0.15 | H8: =PFP3_FatorKc!$E$10 -> 0.1416 | I8: =PFP3_FatorKc!$E$14 -> 0.1 | J8: =ROUND((1+F8+G8)*(1+H8)*(1+I8),4) -> 1.6953
A9: SICRO | B9: P8066 | C9: MO | D9: P1 | E9: Engenheiro Pleno – Projeto (P8066) | F9: 0.7281 | G9: =PFP3_FatorKc!$E$15 -> 0.15 | H9: =PFP3_FatorKc!$E$10 -> 0.1416 | I9: =PFP3_FatorKc!$E$14 -> 0.1 | J9: =ROUND((1+F9+G9)*(1+H9)*(1+I9),4) -> 2.3584
A10: SICRO | B10: P8058 | C10: MO | D10: P2 | E10: Engenheiro Pleno - Ambiental (P8058) | F10: 0.7281 | G10: =PFP3_FatorKc!$E$15 -> 0.15 | H10: =PFP3_FatorKc!$E$10 -> 0.1416 | I10: =PFP3_FatorKc!$E$14 -> 0.1 | J10: =ROUND((1+F10+G10)*(1+H10)*(1+I10),4) -> 2.3584
A11: SICRO | B11: P8135 | C11: MO | D11: A1 | E11: Administrativo (Secretariado) (P8135) | F11: 0.7281 | G11: =PFP3_FatorKc!$E$15 -> 0.15 | H11: =PFP3_FatorKc!$E$10 -> 0.1416 | I11: =PFP3_FatorKc!$E$14 -> 0.1 | J11: =ROUND((1+F11+G11)*(1+H11)*(1+I11),4) -> 2.3584
A13: NOME DO INFORMANTE: | J13: QUALIFICAÇÃO
A15: ASSINATURA: | J15: DATA:
A17: OBSERVAÇÃO:
A18: Alocar os Insumos MO, com respectivo FatorK, dentro da categoria de vínculo contratual (com ou sem) de cada tipo de profissional
A19: K1 - Encargos Sociais - Valores obtidos do Relatório de Consolidação dos Custos de Mão de obra do SICRO (Tabela 1 - Consolidação dos custos de mão de obra - Tabela de Preços de Consultoria - mês de referência: abril de 2022)
A21: K2 - Custos da Administração Central
A22: K3 - Despesas Fiscais
A23: K4 - Remuneração da empresa (LUCRO)
A24: Ka - Taxa de Ressarcimento de Despesas e Encargos sobre a Mão de Obra COM VINCULO (incide apenas no Insumo Codigo M.O.)
A25: Ka = (1 + K1 + K2) x (1 + K3) x (1 + K4)

Sheet PFP2.2_FatorKb
A1: DETALHAMENTO DOS ENCARGOS SOCIAIS: Kb | F1: CODIGO:
F2: PFP-2.2
A3: NOME DA CONSULTORA:
A5: PROJETO: | C5: CONTRATANTE: | F5: =PFP2.1_FatorKa!J5 -> BASE: Outubro/2022
A6: =PFP!A6 -> Pavimentação em Cristalina/GO | C6: =PFP!F6 -> Codevasf (Sede)
A7: DISCRIMINAÇÃO | E7: VALORES
E8: % | F8: R$
A9: A | B9: ENCARGOS SOCIAIS BÁSICOS | E9: =ROUND(SUM(E10:E18),4) -> 0.2 | F9: =ROUND(E9*PFP!$H$17,2) -> 26317.17
A10: A1 | B10: Seconci | E10: 0 | F10: =ROUND(E10*PFP!$H$17,2) -> 0
A11: A2 | B11: INSS | E11: 0.2 | F11: =ROUND(E11*PFP!$H$17,2) -> 26317.17
A12: A3 | B12: FGTS | E12: 0 | F12: =ROUND(E12*PFP!$H$17,2) -> 0
A13: A4 | B13: Incra | E13: 0 | F13: =ROUND(E13*PFP!$H$17,2) -> 0
A14: A5 | B14: Salário Educação | E14: 0 | F14: =ROUND(E14*PFP!$H$17,2) -> 0
A15: A6 | B15: Sebrae | E15: 0 | F15: =ROUND(E15*PFP!$H$17,2) -> 0
A16: A7 | B16: Seguro contra acidente | E16: 0 | F16: =ROUND(E16*PFP!$H$17,2) -> 0
A17: A8 | B17: Senai | E17: 0 | F17: =ROUND(E17*PFP!$H$17,2) -> 0
A18: A9 | B18: Sesi | E18: 0 | F18: =ROUND(E18*PFP!$H$17,2) -> 0
A19: B | B19: ENCARGOS SOCIAIS QUE RECEBEM INCIDÊNCIA DE "A" | E19: =ROUND(SUM(E20:E26),4) -> 0 | F19: =ROUND(E19*PFP!$H$17,2) -> 0
A20: B1 | B20: 13º Salário | E20: 0 | F20: =ROUND(E20*PFP!$H$17,2) -> 0
A21: B2 | B21: Auxilio Enfermidade | E21: 0 | F21: =ROUND(E21*PFP!$H$17,2) -> 0
A22: B3 | B22: Licença Paternidade | E22: 0 | F22: =ROUND(E22*PFP!$H$17,2) -> 0
A23: B4 | B23: Faltas Justificadas | E23: 0 | F23: =ROUND(E23*PFP!$H$17,2) -> 0
A24: B5 | B24: Auxílio Acidente de Trabalho | E24: 0 | F24: =ROUND(E24*PFP!$H$17,2) -> 0
A25: B6 | B25: Férias Gozadas | E25: 0 | F25: =ROUND(E25*PFP!$H$17,2) -> 0
A26: B7 | B26: Salário Maternidade | E26: 0 | F26: =ROUND(E26*PFP!$H$17,2) -> 0
A27: C | B27: ENCARGOS SOCIAIS QUE NÃO RECEBEM INCIDÊNCIA DE "A" | E27: =ROUND(SUM(E28:E32),4) -> 0 | F27: =ROUND(E27*PFP!$H$17,2) -> 0
A28: C1 | B28: Aviso Prévio Indenizado | E28: 0 | F28: =ROUND(E28*PFP!$H$17,2) -> 0
A29: C2 | B29: Aviso Prévio Trabalhado | E29: 0 | F29: =ROUND(E29*PFP!$H$17,2) -> 0
A30: C3 | B30: Férias Indenizadas | E30: 0 | F30: =ROUND(E30*PFP!$H$17,2) -> 0
A31: C4 | B31: Depósito Rescisão Sem Justa Causa | E31: 0 | F31: =ROUND(E31*PFP!$H$17,2) -> 0
A32: C5 | B32: Indenização Adicional | E32: 0 | F32: =ROUND(E32*PFP!$H$17,2) -> 0
A33: D | B33: REINCIDÊNCIAS | E33: =ROUND(SUM(E34:E35),4) -> 0 | F33: =ROUND(E33*PFP!$H$17,2) -> 0
A34: D1 | B34: Reincidência de "A" sobre "B" | E34: =ROUND(E9*E19,4) -> 0 | F34: =ROUND(E34*PFP!$H$17,2) -> 0
A35: D2 | B35: Reincidência de "A" sobre Aviso Prévio Trabalhado e reincidência do FGTS sobre Aviso Prévio Indenizado | E35: =ROUND(E9*E29,4)+ROUND(E28*E12,4) -> 0 | F35: =ROUND(E35*PFP!$H$17,2) -> 0
A36: K1 | B36: ENCARGOS SOCIAIS | E36: =ROUND(E9+E19+E27+E33,4) -> 0.2 | F36: =ROUND(E36*PFP!$H$17,2) -> 26317.17
A37: Kb | B37: TAXA DE RESSARCIMENTO DE DESPESAS E ENCARGOS SOBRE MO SV | E37: =ROUND((1+E36+PFP3_FatorKc!E15)*(1+PFP3_FatorKc!E14)*(1+PFP3_FatorKc!E10),4) -> 1.6953
A38: NOME DO INFORMANTE: | E38: QUALIFICAÇÃO
A40: ASSINATURA: | E40: DATA:
A42: OBSERVAÇÃO:
A43: 1 - DISCRIMINAR OS ENCARGOS SOCIAIS COM SEUS RESPECTIVOS PERCENTUAS TOTALIZANDO OS MESMOS.
A44: 2 - APLICAR O % TOTAL P/ CALCULAR OS E. SOCIAIS INCIDENTES NA MÃO-DE-OBRA SEM VÍNCULO PERMANENTE
A45: Kb - Taxa de Ressarcimento de Despesas e Encargos sobre a Mão de Obra SEM VINCULO (incide apenas no Insumo Codigo M.O.)
A46: Kb = (1 + K1 + K2) x (1 + K3) x (1 + K4)

Sheet PFP3_FatorKc
A1: DESPESAS FISCAIS E CUSTOS DIVERSOS: Kc | F1: CODIGO:
F2: PFP-3
A3: NOME DA CONSULTORA:
A5: PROJETO: | C5: CONTRATANTE: | F5: =PFP!J5 -> BASE: Outubro/2022
A6: =PFP!A6 -> Pavimentação em Cristalina/GO | C6: =PFP!F6 -> Codevasf (Sede)
A7: DISCRIMINAÇÃO 1 | D7: VALORES
D8: % preço | E8: % custo | F8: R$
A9: K4 | B9: DESPESAS FISCAIS | D9: K' (%)2 | E9: K (%)3
D10: =ROUND(D11+D12+D13,4) -> 0.124 | E10: =ROUND(E11+E12+E13,4) -> 0.1416
A11: 1 | B11: ISS | D11: 0.05 | E11: =ROUND((1/(1-$D$10))*D11,4) -> 0.0571
A12: 2 | B12: PIS - aliquota efetiva com percentual-desconto de 20% | D12: =ROUND(1.65%*0.8,4) -> 0.0132 | E12: =ROUND((1/(1-$D$10))*D12,4) -> 0.0151
A13: 3 | B13: COFINS - aliquota efetiva com percentual-desconto de 20% | D13: =ROUND(7.6%*0.8,4) -> 0.0608 | E13: =ROUND((1/(1-$D$10))*D13,4) -> 0.0694
A14: K3 | B14: REMUNERAÇÃO DA EMPRESA (LUCRO) | E14: 0.1
A15: K2 | B15: CUSTOS DA ADMINISTRAÇÃO CENTRAL | E15: =ROUND(SUM(E16:E18),4) -> 0.15
A16: 4 | B16: Custos da administração central da empresa (diretoria, pessoal técnico de apoio e pessoal administrativo não diretamente vinculado à prestação dos serviços) | E16: 0.1
A17: 5 | B17: Outras despesas que afetam o custo de produção como treinamento, biblioteca, programa de qualidade, programa de benefícios, auditoria interna e externa | E17: 0.03
A18: 6 | B18: Despesas fixas e variaveis com patrimônio, aluguéis, comunicação, manutenção e transporte não diretamente relacionados com o custo direto dos serviços | E18: 0.02
A19: Kc | B19: TAXA RESSARCIMENTO DE DESPESAS SOBRE CUSTOS DIVERSOS | E19: =ROUND((1+E14)*(1+E10),4) -> 1.2558
A20: NOME DO INFORMANTE: | E20: QUALIFICAÇÃO:
A22: ASSINATURA: | E22: DATA:
A24: Observação:
A25: 1 - RELACIONAR OS CUSTOS DE ADMINISTRAÇÃO COM RESPECTIVOS PERCENTUAIS INCIDENTES NA MÃO -DE-OBRA
A26: 1 - DISCRIMINAR OS TRIBUTOS QUE INCIDEM SOBRE OS CUSTOS DA PRESTAÇÃO DOS SERVIÇOS
A27: 2 - K4 = INDICAR % DE CADA TRIBUTO E A SOMA DOS MESMOS
A28: 3 - PIS e COFINS, Regime de Incidencia Acumulativa ou em Regime de Incidencia Não Acumulativa de acordo com a forma de apuração do lucro no IRPJ. APRESENTAR COMPROVANTES de aproveitamento de créditos tributários dos últimos 12 meses em caso de aplicação de "percentual de desconto".
A29: 4 - AS DESPESAS FISCAIS (K4) INCIDEM SOBRE O TOTAL DA FATURA E NÃO SOBRE OS CUSTOS INCORRIDOS,
A30: DEVENDO SER CALCULADO O K4' APLICANDO-SE A SEGUINTE FÓRMULA:
A31: K4' = { [ 1 / ( 1 - K4) ] - 1 } x 100
A32: =CONCATENATE(" K4' = { [ 1 / ( 1 - ",D10," ) ] - 1 } x 100") -> K4' = { [ 1 / ( 1 - 0,124 ) ] - 1 } x 100
A33: Kc - Taxa de Ressarcimento de Despesas sobre Custos Diversos (incide sobre os Insumos Codigo DP e ME)
A34: Kc = (1 + K3) x (1 + K4)
A35: K2 - Incide sobre o Custo Total (CT) da Mão de Obra (MO)
A36: K3 - Incide sobre o Custo Total (CT) Mão de Obra com encargos (MO x Ka ou Kb), demais Custos (DP e EQ), e Custos da Administração Central (K2)
A37: K4 - Incide sobre o Custo Total (CT) Mão de Obra com encargos (MO x Ka ou Kb), demais Custos (DP e EQ), e Custos da Administração Central (K2) e Lucro (K3)
A1048576: ISS- O ISS informado na proposta da licitante deve corresponder ao seu domicílio fiscal.

Sheet CPU VEICULOS
A2: Composição de Preços de Locação de Veículos
A3: CONTRATAÇÃO DE EMPRESA PARA PRESTAÇÃO DE SERVIÇOS DE LOCAÇÃO DE VEÍCULOS TIPO CAMINHONETE PICK-UP 4X4, PARA USO NA EXECUÇÃO, ACOMPANHAMENTO E FISCALIZAÇÃO DE PROJETOS, SERVIÇOS, OBRAS E CONTRATOS, SOB GESTÃO DO CENTRO DE CONTROLE E OPERAÇÃO DO PISF – AD/GOI/CCO, EM SALGUEIRO-PE.
A4: CODEVASF | F4: Preço FIPE - setembro/2022 | K4: PRODUTO | L4: MÉDIA | M4: COT. 1 | N4: COT. 2 | O4: COT. 3 | P4: COT. 4 | Q4: COT. 5 | R4: COT. 6 | S4: COT. 7 | T4: COT. 8 | V4: PRODUTO | W4: MÉDIA | X4: COT. 1 | Y4: COT. 2 | Z4: COT. 3 | AA4: COT. 4 | AB4: COT. 5
A5: BDI= | D5: 0 | F5: Toro Endurance 2.0 16V 4x4 Diesel Aut. | G5: Toro Freedom 2.0 16V 4x4 TB Diesel Aut. | H5: Toro Volcano 2.0 16V 4x4 TB Diesel Aut. | I5: Toro Ranch 2.0 16V 4x4 TB Diesel Aut. | K5: LUBRIFICANTE 5W30 | L5: =AVERAGE(M5:T5) -> 40.4925 | M5: 29.9 | N5: 52 | O5: 30.94 | P5: 40.17 | Q5: 62.97 | R5: 25 | S5: 54.06 | T5: 28.9 | V5: Pneu 225/65 R17 | W5: =AVERAGE(X5:AE5) -> 575.268 | X5: 459.44 | Y5: 679 | Z5: 679 | AA5: 519.9 | AB5: 539
A6: Veículo tipo pick-up, cabine dupla - 2.0 16V 4x4 diesel Aut. | F6: 166823 | G6: 198620 | H6: 213614 | I6: 221660
C7: Mensal (R$): | D7: =D47 -> 7107.892121
C8: Diária (R$): | D8: =D7/22 -> 323.0860055
A9: A | C9: Depreciação mensal do equipamento
A10: A1 | C10: Preço de Aquisição | D10: =SMALL(F6:I6,1) -> 166823
A11: A2 | C11: Tempo previsto de vida útil (meses) | D11: 36
A12: A3 | C12: Previsão de recup. Na venda do bem usado | D12: 0.4
A13: A4 | C13: Custo mensal [A1-(A3xA1)]/A2 | D13: =(D10-(D12*D10))/D11 -> 2780.383333
A14: B | C14: Juros pelo Capital empregado
A15: B1 | C15: Taxa mensal de Juros * | D15: =POWER(1+D53,1/12)-1 -> 0.01079391108
A16: B2 | C16: Juros s/depreciação/aluguel (B1xA4) | D16: =D15*D13 -> 30.01121047
A17: C | C17: Conservação e manutenção ** | D17: 0.75
A18: C1 | C18: Taxa de gastos s/a deprec. Inc. seguros (%) | D18: =D17 -> 0.75
A19: C2 | C19: Incidência mensal (C1xA4) | D19: =D18*D13 -> 2085.2875
A20: D | C20: Combustível
A21: D1 | C21: Média mensal de quilômetro por veículo | D21: 3000
A22: D2 | C22: Preço do litro de combustível | D22: 6.67
A23: D3 | C23: Quilômetros rodados com um litro combustivel | D23: 10
A24: D4 | C24: Combustivel (D1/D3)*D2 | D24: =(D21/D23)*D22 -> 2001
A25: E | C25: Lubrificantes
A26: E1 | C26: Quilometragem do Contrato (D1*12) | D26: 36000
A27: E2 | C27: Franquia por troca de óleo (km) | D27: 10000
A28: E3 | C28: Preço do litro de óleo | D28: =L5 -> 40.4925
A29: E4 | C29: Quantidade de litros de óleo por troca | D29: 5
A30: E5 | C30: Quantidade de dias do Contrato | D30: 365
A31: E6 | C31: Lubrificantes E = (E1*E3*E4*30)/E2*E5 | D31: =(D26*D28*D29*30)/(D27*D30) -> 59.90671233
A32: F | C32: Pneus
A33: F1 | C33: Quilometragem do Contrato | D33: =D26 -> 36000
A34: F2 | C34: Vida do Pneu em quilômetros | D34: 45000
A35: F3 | C35: Quantidade de pneus | D35: 4
A36: F4 | C36: Preço do Pneu | D36: =W5 -> 575.268
A37: F5 | C37: Quantidade de dias do contrato | D37: =D30 -> 365
A38: F6 | C38: Pneus = (F1*F3*F4*30)/(F2*F5) | D38: =(D33*D35*D36*30)/(D34*D37) -> 151.3033644
A39: G | C39: Motorista
A40: G1 | C40: Salário com encargos sociais | D40: Não se aplica
A41: H | C41: Custo Mensal
C42: Sem Motorista (A4+B2+C2+D4+E6+F6) | D42: =D13+D16+D19+D24+D31+D38 -> 7107.892121
C43: Com Motorista | D43: Não se aplica
A44: I | C44: Custo Direto p/ km Rodado
C45: Sem Motorista | D45: =D42/D21 -> 2.369297374
C46: Com Motorista | D46: Não se aplica
A47: J | C47: Preço cobrado com BDI | D47: =D42*(1+D5) -> 7107.892121
A48: J1 | C48: Sem Motorista | D48: =D47 -> 7107.892121 | J48: https://www.google.com/search?q=óleo+lubrificante+5w30&sa=X&biw=1600&bih=789&tbm=shop&ei=fZIXY84IteXWxA_Vw4vYDg&ved=0ahUKEwiOu-_35oD6AhW1spUCHdXhAusQ4dUDCAY&uact=5&oq=óleo+lu… 2/15 | U48: https://www.google.com/search?q=pneu+225/65+R17+original&source=lmns&tbm=shop&bih=789&biw=1600&hl=pt-BR&sa=X&ved=2ahUKEwjCqaH134D6AhWQK7kGHU3KA2UQ_AUoAXoECAEQAQ 2/15
A49: J2 | C49: Com Motorista | D49: =D43 -> Não se aplica
C51: OBSERVAÇÕES:
A52: * | C52: Calculado com base na taxa SELIC agosto/2022 - 13,75 % a.a
C53: SELIC AGOSTO / 2022 - Taxa de Juros Selic — Português (Brasil) (www.gov.br) | D53: 0.1375
A55: ** | C55: Conservação e manutenção - é calculado com o uso de um coeficiente multiplicador "k", conforme tabela abaixo, sobre a
C56: depreciação mensal do equipamento (Item A da planilha de composição de preços). Os valores de K são fornecidos por
C57: fabricantes.
C58: Metodologia conforme a bibliografia "Como Preparar Orçamentos de Obras", 3 edição, Aldo Dórea Mattos, 2019.

Sheet CRO1_Ins-Pro
A1: INSUMOS POR ETAPA/PRODUTO | G1: CODIGO:
G2: CRO-1
A3: Cod. | B3: Categoria / Insumo | C3: Uni | D3: Qde | E3: CUD | F3: PU | G3: FatorK | H3: 1. EVTEA | I3: 2. Esc. Alt. | J3: 3. PB
A4: SICRO | B4: Engenheiro Sênior (Coordenador) (P8061) | C4: mês | D4: =SUM(H4:J4) -> 4 | E4: =PFP!G8 -> 16889.91 | F4: =ROUND(E4*G4,2) -> 28633.46 | G4: =PFP!I8 -> 1.6953 | H4: 1 | I4: 1 | J4: 2
A5: SICRO | B5: Engenheiro Pleno – Projetista Estrada (P8066) | C5: mês | D5: =SUM(H5:J5) -> 3 | E5: =PFP!G9 -> 10987.76 | F5: 25913.53 | G5: =PFP!I9 -> 2.3584 | H5: 0 | I5: 1 | J5: 2
A6: SICRO | B6: Engenheiro Pleno – Ambiental (P8058) | C6: mês | D6: =SUM(H6:J6) -> 1 | E6: =PFP!G10 -> 10929.35 | F6: 25775.78 | G6: =PFP!I10 -> 2.3584 | H6: 1 | I6: 0 | J6: 0
A7: SICRO | B7: Administrativo (Secretariado) (P8135) | C7: mês | D7: =SUM(H7:J7) -> 4 | E7: =PFP!G11 -> 2254.2 | F7: 5316.31 | G7: =PFP!I11 -> 2.3584 | H7: 1 | I7: 1 | J7: 2
A8: CODE | B8: Diárias | C8: dia | D8: =SUM(H8:J8) -> 21 | E8: =PFP!G12 -> 305.1 | F8: 383.14 | G8: =PFP!I12 -> 1.2558 | H8: 15 | I8: 0 | J8: 6
A9: PROP | B9: Pick-up Cab. Dupla 2.8 4x4 Diesel | C9: dia | D9: 10 | E9: =PFP!G13 -> 323.0860055 | F9: 405.73 | G9: =PFP!I13 -> 1.2558 | H9: 6 | I9: 4 | J9: 0
A10: CODE | B10: Relatório Final | C10: un | D10: 1 | E10: =PFP!G14 -> 1478.8 | F10: 1857.08 | G10: =PFP!I14 -> 1.2558 | H10: 0 | I10: 0 | J10: 1
A11: CODE | B11: Total Serviços Cartográficos | C11: un | D11: 1 | E11: =PFP!G15 -> - | F11: =PFP!H15 -> 221087.91 | G11: - | H11: 0 | I11: 0 | J11: 1
A12: CODE | B12: Total Serviços Geotécnicos | C12: un | D12: 1 | E12: =PFP!G16 -> - | F12: =PFP!H16 -> 437325.9 | G12: - | H12: 0 | I12: 0 | J12: 1
A13: TOTAL | B13: VALOR POR PRODUTO | C13: R$ | D13: =SUM(H13:J13) -> 911689.58 | H13: =SUM(F4:F10*$H4:H$10) -> 67907.03 | I13: =SUM(I4:I10*$F$4:$F$10) -> 61486.22 | J13: =SUM(J4:J12*$F$4:$F$12) -> 782296.33
C14: % | D14: =SUM(H14:J14) -> 0.99999 | H14: =ROUND(H13/$D$13,5) -> 0.07448 | I14: =ROUND(I13/$D$13,5) -> 0.06744 | J14: =ROUND(J13/$D$13,5) -> 0.85807
A15: OBSERVAÇÃO:
A16: P - Profissionais nível superior nas áreas de Engenharia, Química, Arquitetura, Agronomia e Veterinária, conforme disposições da Lei 4.950-A/66
A17: S - Profissionais de nível superior nas demais áreas de atuação, incluindo Arqueólogo, Biólogo, Geógrafo e Socioólogo
A18: T - Profissionais de nível médio técnico nas diversas áreas de atuação
A19: A - Profissionais de nível médio de apoio técnico-administrativo

Sheet CRO2_Ins-Mes
A1: CRONOGRAMA SIMPLIFICADO | D1: Mês
A2: Produtos | B2: Uni | C2: Qde | D2: 1 | E2: 2 | F2: 3 | G2: 4
A3: Estudo de Viabilidade Técnica, Econômica e Ambiental | B3: mês | C3: =SUM(D3:G3) -> 1 | D3: 1 | E3: 0 | F3: 0 | G3: 0
A4: Escolha das Alternativas | B4: mês | C4: =SUM(D4:G4) -> 1 | D4: 0 | E4: 1 | F4: 0 | G4: 0
A5: Estudos de Campo e Projeto Básico | B5: mês | C5: =SUM(D5:G5) -> 2 | D5: 0 | E5: 0 | F5: 1 | G5: 1

Sheet Encargos Sociais
